bitfinex/quotes_ETHUSD_20250426
["timestamp","ask_amount","ask_price","bid_price","bid_amount"]
[1745685177653,5.0324594,1806.7,1806.5,5.53538085]
[1745685178038,5.0324594,1806.7,1806.6,5.5352596]
[1745685178652,5.0324594,1806.7,1806.6,6.64232365]
[1745685179483,5.0324594,1806.7,1806.5,5.53539503]
[1745685180188,5.8113594,1806.7,1806.1,4.19259727]
[1745685180343,5.8113594,1806.7,1806.2,5.53641409]
[1745685180344,5.53547457,1806.6,1806.2,5.53641409]
[1745685180545,11.34637796,1806.7,1806.2,5.53641409]
[1745685180740,11.34637796,1806.7,1806.2,11.07266141]
[1745685181071,11.34637796,1806.7,1806.3,5.536177]
[1745685181249,11.34637796,1806.7,1806.1,6.30655792]
[1745685181450,5.8113594,1806.7,1806.2,0.63065579]
[1745685181651,11.34639316,1806.7,1805.9,6.30730204]
[1745685181948,5.8113594,1806.7,1806.3,5.53603999]
[1745685182147,11.34634019,1806.7,1806.3,5.53603999]
[1745685182983,5.8113594,1806.7,1806.4,5.5358383]
[1745685183783,5.8113594,1806.7,1806.5,5.53551481]
[1745685183972,5.8113594,1806.7,1806.4,5.53572799]
[1745685183973,5.0324594,1806.7,1806.4,5.53572799]
[1745685184185,0.4064594,1806.7,1806.6,5.5352596]
[1745685184873,0.4064594,1806.7,1806.6,6.2929596]
[1745685185871,0.4064594,1806.7,1806.5,6.08897652]
[1745685187480,0.4064594,1806.7,1806.6,5.5352596]
[1745685188391,0.4064594,1806.7,1806.6,6.69768321]
[1745685188587,0.4064594,1806.7,1806.6,1.16242361]
[1745685188894,0.4064594,1806.7,1806.5,6.08896798]
[1745685189054,0.4064594,1806.7,1806.5,6.08892875]
[1745685189892,0.4064594,1806.7,1806.5,0.5535728]
[1745685190186,0.4064594,1806.7,1806.6,5.5352596]
[1745685190392,0.4064594,1806.7,1806.5,0.5535728]
[1745685190393,0.4064594,1806.7,1806.5,6.08899318]
[1745685190894,0.4064594,1806.7,1806.5,0.5535728]
[1745685191071,0.4064594,1806.7,1806.3,8.5360364]
[1745685191394,0.4064594,1806.7,1806.4,11.07133032]
[1745685191693,0.4064594,1806.7,1806.5,5.53545094]
[1745685191991,0.4064594,1806.7,1806.6,5.5352596]
[1745685192160,0.4064594,1806.7,1806.6,6.71919898]
[1745685192585,0.4064594,1806.7,1806.5,5.53537471]
[1745685193085,0.4064594,1806.7,1806.6,5.5352596]
[1745685193769,0.4064594,1806.7,1806.5,5.53543585]
[1745685194351,0.4064594,1806.7,1806.5,5.53532865]
[1745685194792,0.4064594,1806.7,1806.6,5.5352596]
[1745685196273,0.4064594,1806.7,1806.6,6.64231843]
[1745685198121,0.4064594,1806.7,1806.4,5.53580046]
[1745685198277,1.1624594,1806.7,1806.4,5.5356732]
[1745685198604,6.6974268,1806.7,1806.3,5.53608403]
[1745685199103,6.6974268,1806.7,1806.2,5.53627303]
[1745685199277,6.6974268,1806.7,1806.3,5.53609143]
[1745685199474,0.66974268,1806.6,1806.3,5.53609143]
[1745685199773,4.622,1806.6,1806.4,5.53571506]
[1745685200686,0.4064594,1806.7,1806.6,5.5352596]
[1745685200900,5.0284594,1806.7,1806.6,5.5352596]
[1745685202511,5.0284594,1806.7,1806.5,5.53548121]
[1745685202811,0.7927,1806.6,1806.0,3.0]
[1745685202996,0.7927,1806.6,1805.3,0.7849]
[1745685202997,0.7927,1805.8,1805.3,0.7849]
[1745685203311,4.622,1805.7,1805.2,5.53933093]
[1745685203494,4.622,1805.7,1805.2,0.63242309]
[1745685203697,10.16024122,1805.7,1805.1,0.7849]
[1745685203900,10.16024122,1805.7,1805.2,5.53931777]
[1745685204094,4.622,1805.7,1805.2,5.53945411]
[1745685204314,4.622,1805.7,1805.3,5.53905471]
[1745685204507,4.622,1805.7,1805.1,3.7849]
[1745685204712,4.622,1805.7,1805.3,5.53909709]
[1745685205011,4.622,1805.7,1805.4,5.53893109]
[1745685205598,4.622,1805.7,1805.5,5.53851875]
[1745685205803,0.7927,1805.6,1804.8,5.54078014]
[1745685205975,0.7927,1805.6,1805.1,5.53961255]
[1745685205976,1.33417,1805.6,1805.1,5.53961255]
[1745685206181,6.87271424,1805.6,1805.1,5.53961255]
[1745685206376,5.5386982,1805.5,1805.1,5.53961255]
[1745685206913,1.33417,1805.6,1804.9,0.55407801]
[1745685207103,1.33417,1805.6,1805.1,5.53970485]
[1745685207104,6.87258008,1805.6,1805.1,5.53970485]
[1745685207917,6.87258008,1805.6,1805.1,5.53966055]
[1745685208518,6.87258008,1805.6,1805.1,5.53981017]
[1745685208519,1.33417,1805.6,1805.1,5.53981017]
[1745685208813,6.87257436,1805.6,1805.1,5.53971982]
[1745685209006,12.98257436,1805.6,1805.1,5.53971982]
[1745685210013,6.9027,1805.6,1805.4,5.53890723]
[1745685210187,0.7927,1805.6,1805.3,5.53908179]
[1745685210517,0.7927,1805.6,1805.4,5.53891532]
[1745685211220,0.7927,1805.6,1805.5,5.53863195]
[1745685211519,10.732,1805.7,1805.5,5.53863195]
[1745685211721,10.732,1805.7,1805.6,5.53832521]
[1745685212097,10.732,1805.7,1805.5,5.53841861]
[1745685212681,10.732,1805.7,1805.6,5.53832521]
[1745685213118,10.732,1805.7,1805.5,5.53844193]
[1745685214125,10.732,1805.7,1805.6,5.53832521]
[1745685214895,4.622,1805.7,1805.6,5.53832521]
[1745685215417,0.7927,1805.8,1805.6,5.53832521]
[1745685215617,4.685,1805.7,1805.6,5.53832521]
[1745685217743,4.685,1805.7,1805.5,5.53843825]
[1745685217923,4.685,1805.7,1805.6,5.53832521]
[1745685239454,4.684,1805.9,1805.7,5.53774502]
[1745685240095,4.684,1805.9,1805.8,5.53771181]
[1745685242256,0.7502,1805.8,1805.1,4.93257824]
[1745685242486,0.7502,1805.8,1805.5,5.53832708]
[1745685243056,0.7502,1805.8,1805.7,5.53801849]
[1745685243684,1.06141985,1805.8,1805.7,5.53801849]
[1745685243890,0.7515,1805.2,1804.8,5.54064909]
[1745685244188,5.54068977,1804.9,1804.5,5.54169374]
[1745685244398,0.7515,1804.8,1804.4,5.54198438]
[1745685244603,4.677,1804.7,1804.2,6.3391061]
[1745685244787,10.21827743,1804.7,1804.2,5.54248568]
[1745685245111,4.677,1804.7,1804.3,5.54228933]
[1745685245274,4.677,1804.7,1804.4,5.54197237]
[1745685245614,4.677,1804.7,1804.2,0.56424857]
[1745685245811,4.677,1804.7,1804.4,5.54178707]
[1745685246417,4.677,1804.7,1804.5,5.54162092]
[1745685246715,0.7515,1804.8,1804.7,5.54108716]
[1745685247002,5.4295,1804.8,1804.7,5.54108716]
[1745685247211,5.4295,1804.8,1804.6,5.54122531]
[1745685250123,5.4295,1804.8,1804.5,5.54169862]
[1745685250421,5.4295,1804.8,1804.4,5.54182317]
[1745685250618,5.97245,1804.8,1804.4,5.54182202]
[1745685252215,5.97245,1804.8,1804.5,5.54168734]
[1745685253010,5.4295,1804.8,1804.5,5.54168734]
[1745685253320,5.4295,1804.8,1804.4,5.54182202]
[1745685253526,5.4295,1804.8,1804.5,5.54163541]
[1745685254196,5.4295,1804.8,1804.4,5.54188687]
[1745685254552,10.97031224,1804.8,1804.4,5.54188687]
[1745685254761,6.52653122,1804.8,1804.4,11.08366298]
[1745685254911,12.06731986,1804.8,1804.4,5.54177611]
[1745685255312,6.52653122,1804.8,1804.5,5.5416706]
[1745685256528,6.52653122,1804.8,1804.4,5.54184783]
[1745685256927,6.52653122,1804.8,1804.4,5.54178283]
[1745685257554,12.06731705,1804.8,1804.4,5.54178283]
[1745685257864,6.52653122,1804.8,1804.4,5.54178283]
[1745685258849,6.52653122,1804.8,1804.5,5.54166075]
[1745685259422,6.52653122,1804.8,1804.5,5.541478]
[1745685259620,6.52653122,1804.8,1804.1,0.9313]
[1745685259621,5.4295,1804.8,1804.1,0.9313]
[1745685259842,5.4295,1804.8,1804.4,5.54170174]
[1745685260135,5.4295,1804.8,1804.5,5.54161621]
[1745685260330,5.4295,1804.8,1804.4,5.54181115]
[1745685260534,5.4295,1804.8,1804.5,5.54166873]
[1745685260861,6.52651134,1804.8,1804.5,5.54166873]
[1745685261018,0.7983,1804.6,1804.1,6.47407841]
[1745685261224,6.33974861,1804.6,1804.2,5.54245142]
[1745685261860,0.7983,1804.6,1804.3,5.54231041]
[1745685262107,6.34045411,1804.4,1804.1,0.1]
[1745685262381,4.679,1804.3,1804.1,0.1]
[1745685262580,0.7983,1804.2,1804.1,0.1]
[1745685263345,12.45092276,1804.2,1804.1,0.1]
[1745685264294,12.85649679,1804.2,1804.1,0.1]
[1745685264589,13.95350813,1804.2,1804.1,0.1]
[1745685264783,8.41088537,1804.2,1804.1,0.1]
[1745685265398,8.00531134,1804.2,1804.1,0.1]
[1745685265574,6.9083,1804.2,1804.1,0.1]
[1745685265763,11.5883,1804.2,1804.1,5.64292999]
[1745685266146,10.79,1804.2,1804.1,5.64292999]
[1745685267593,4.68,1804.2,1804.1,5.64292999]
[1745685270239,5.4429,1804.2,1804.1,0.1]
[1745685270598,5.4429,1804.2,1804.1,5.64292999]
[1745685270897,4.68,1804.2,1804.1,5.64292999]
[1745685273747,4.68,1804.2,1804.1,0.1]
[1745685273933,4.68,1804.2,1804.1,5.64292999]
[1745685275444,4.68,1804.2,1804.1,0.1]
[1745685276068,4.68,1804.2,1804.1,5.64292999]
[1745685276234,4.68,1804.2,1804.1,0.1]
[1745685276433,4.68,1804.2,1804.1,5.64292999]
[1745685278556,4.68,1804.2,1804.1,0.1]
[1745685278945,4.68,1804.2,1804.1,5.64292999]
[1745685279535,4.68,1804.2,1804.1,0.1]
[1745685279957,4.68,1804.2,1804.1,5.64292999]
[1745685287666,4.68,1804.2,1804.1,0.1]
[1745685287961,5.17910757,1804.2,1804.1,0.1]
[1745685288277,11.78300602,1804.2,1804.1,0.1]
[1745685288967,20.89300602,1804.2,1804.1,0.1]
[1745685291568,0.778,1803.5,1803.2,11.09102654]
[1745685291732,4.729,1803.4,1803.2,11.09102654]
[1745685291936,4.729,1803.4,1803.3,0.11388729]
[1745685294072,4.729,1803.4,1803.3,5.65927629]
[1745685296463,4.729,1803.4,1803.3,6.43157629]
[1745685297450,4.729,1803.4,1803.3,5.65927629]
[1745685297791,5.2019,1803.4,1803.3,0.11388729]
[1745685299683,5.2019,1803.4,1803.2,5.54550148]
[1745685299984,4.729,1803.4,1803.3,0.11388729]
[1745685300166,4.729,1803.4,1803.3,5.65927629]
[1745685300496,4.729,1803.4,1803.3,6.44937629]
[1745685300991,16.646,1803.8,1803.6,5.54446662]
[1745685301144,16.646,1803.8,1803.7,5.54415922]
[1745685301343,21.344,1803.8,1803.7,5.54415922]
[1745685301573,21.344,1803.8,1803.7,5.65804651]
[1745685302179,16.646,1803.8,1803.7,5.65804651]
[1745685302383,16.646,1803.8,1803.7,6.85730596]
[1745685302685,21.344,1803.8,1803.7,6.85730596]
[1745685303365,21.344,1803.8,1803.7,5.65804651]
[1745685303557,21.344,1803.8,1803.7,0.11388729]
[1745685303759,21.344,1803.8,1803.5,5.54460814]
[1745685303988,6.33987723,1803.6,1803.2,5.54555373]
[1745685304298,6.33987723,1803.6,1803.1,5.64588529]
[1745685304299,5.54502482,1803.5,1803.1,0.1]
[1745685304465,5.25250248,1803.4,1803.1,5.64598377]
[1745685306277,5.25250248,1803.4,1803.1,5.64578149]
[1745685307346,5.25250248,1803.4,1803.2,0.10375122]
[1745685310415,0.7554,1803.3,1803.2,0.10375122]
[1745685311642,6.8654,1803.3,1803.2,0.10375122]
[1745685316842,6.85680741,1803.3,1803.2,0.10375122]
[1745685318145,6.11,1803.3,1803.2,0.10375122]
[1745685318327,6.11,1803.3,1803.2,5.64944775]
[1745685318847,6.11,1803.3,1803.2,0.10375122]
[1745685318994,6.11,1803.3,1803.2,5.64944775]
[1745685321820,6.11,1803.3,1803.2,6.8568033]
[1745685322007,10.809,1803.3,1803.2,8.33610057]
[1745685323250,4.699,1803.3,1803.2,8.33610057]
[1745685324151,4.699,1803.3,1803.2,7.6593033]
[1745685325338,4.699,1803.3,1803.2,11.33610057]
[1745685325864,16.646,1803.8,1803.7,5.54415922]
[1745685326066,21.345,1803.8,1803.6,6.34756729]
[1745685326267,21.345,1803.8,1803.7,0.10762623]
[1745685326630,21.345,1803.8,1803.6,6.34756729]
[1745685326826,21.345,1803.8,1803.7,0.10762623]
[1745685327028,16.646,1803.8,1803.7,5.65178545]
[1745685327226,21.345,1803.8,1803.7,5.54415922]
[1745685328258,21.345,1803.8,1803.7,6.73333187]
[1745685330362,21.345,1803.8,1803.7,5.54415922]
[1745685330732,4.699,1803.8,1803.7,5.54415922]
[1745685332663,4.699,1803.8,1803.4,0.7691]
[1745685332844,4.699,1803.8,1803.5,5.54451221]
[1745685333766,4.699,1803.8,1803.6,5.54445213]
[1745685334269,10.71286549,1803.8,1803.4,5.5449546]
[1745685334435,0.7885,1803.7,1803.5,5.54464325]
[1745685334635,0.7885,1803.7,1803.5,11.08925893]
[1745685334957,4.699,1803.8,1803.6,5.54434511]
[1745685335530,4.699,1803.8,1803.5,5.54458046]
[1745685336352,5.85875,1803.8,1803.5,5.54458046]
[1745685337076,5.85875,1803.8,1803.5,5.54452343]
[1745685337667,5.85875,1803.8,1803.5,11.08906026]
[1745685337965,5.85875,1803.8,1803.6,5.54443139]
[1745685338570,5.85875,1803.8,1803.7,5.54415922]
[1745685338746,4.699,1803.8,1803.7,5.54415922]
[1745685339293,4.699,1803.8,1803.6,5.54427952]
[1745685340769,4.699,1803.8,1803.1,0.8691]
[1745685340770,0.7885,1803.7,1803.1,0.8691]
[1745685340987,13.11965925,1803.7,1803.3,5.5453482]
[1745685341189,1.31196593,1803.6,1803.3,5.5453482]
[1745685342688,1.31196593,1803.6,1803.2,5.54553724]
[1745685343253,1.31196593,1803.6,1803.3,5.5453443]
[1745685345887,1.31196593,1803.6,1803.4,5.54495619]
[1745685346384,1.30406679,1803.6,1803.4,5.54495619]
[1745685347078,1.30406679,1803.6,1803.3,5.54534537]
[1745685347780,1.61456786,1803.6,1803.3,5.54534537]
[1745685348082,0.31050107,1803.6,1803.4,5.54502092]
[1745685348286,0.31050107,1803.6,1803.1,0.1]
[1745685348287,6.33419653,1803.2,1803.1,0.1]
[1745685348583,21.11549487,1803.2,1803.1,0.1]
[1745685349147,21.54031768,1803.2,1803.1,0.1]
[1745685350755,15.99462115,1803.2,1803.1,0.1]
[1745685350967,21.54031768,1803.2,1803.1,0.1]
[1745685352468,21.54031768,1803.2,1803.1,0.20816441]
[1745685352665,21.54031768,1803.2,1803.1,0.1]
[1745685352867,11.89300107,1803.2,1803.1,0.21376967]
[1745685353182,11.5825,1803.2,1803.1,0.21371001]
[1745685355296,12.74075,1803.2,1803.1,0.21371001]
[1745685355996,8.05675,1803.2,1803.1,0.21371001]
[1745685356214,12.74175,1803.2,1803.1,0.21371001]
[1745685357775,18.9642438,1803.2,1803.1,0.21371001]
[1745685358492,13.41854727,1803.2,1803.1,0.21371001]
[1745685360007,18.9642438,1803.2,1803.1,0.21371001]
[1745685360673,18.9642438,1803.2,1803.1,0.1]
[1745685361076,19.27387699,1803.2,1803.1,0.1]
[1745685364245,28.79067426,1803.2,1803.1,0.1]
[1745685365126,22.27387699,1803.2,1803.1,0.1]
[1745685366031,22.95067426,1803.2,1803.1,0.1]
[1745685366215,28.79067426,1803.2,1803.1,0.1]
[1745685368153,22.27387699,1803.2,1803.1,0.1]
[1745685370146,32.79067426,1803.2,1803.1,0.1]
[1745685371169,0.7864,1802.6,1802.1,0.1]
[1745685371342,17.03083735,1802.5,1802.1,5.64904051]
[1745685371532,11.48279727,1802.5,1802.2,5.66366474]
[1745685372033,10.806,1802.5,1802.2,5.66366474]
[1745685372236,10.806,1802.5,1802.3,6.33935146]
[1745685372565,10.806,1802.5,1802.4,0.11556]
[1745685372859,10.806,1802.5,1802.3,0.7909]
[1745685373066,10.806,1802.5,1802.4,0.11556]
[1745685373261,10.806,1802.5,1802.3,0.7909]
[1745685373466,10.806,1802.5,1802.4,0.11556]
[1745685373666,10.806,1802.5,1802.3,0.7909]
[1745685373835,10.806,1802.5,1802.4,0.11556]
[1745685374169,10.806,1802.5,1802.3,0.7909]
[1745685374489,11.96425,1802.5,1802.4,0.11556]
[1745685374835,11.96425,1802.5,1802.2,5.54877358]
[1745685375150,11.96425,1802.5,1802.3,0.11556]
[1745685375768,12.77335,1802.5,1802.3,0.11556]
[1745685375936,0.80525281,1802.4,1802.1,6.45274574]
[1745685376838,0.80525281,1802.4,1802.1,6.45253526]
[1745685377536,0.80525281,1802.4,1802.2,5.54861854]
[1745685378234,6.35348648,1802.4,1802.1,0.1]
[1745685378772,5.54877372,1802.2,1802.1,0.1]
[1745685378936,6.10365109,1802.2,1802.1,0.1]
[1745685379673,12.97215109,1802.2,1802.1,0.1]
[1745685379975,15.97215109,1802.2,1802.1,0.1]
[1745685380299,16.28237429,1802.2,1802.1,0.1]
[1745685383879,16.28237429,1802.2,1801.3,0.8105]
[1745685383880,5.55073819,1801.6,1801.3,0.8105]
[1745685384042,4.698,1801.5,1801.3,6.36201651]
[1745685384379,4.698,1801.5,1801.4,0.11931975]
[1745685386941,4.698,1801.5,1801.4,5.67055767]
[1745685387145,4.698,1801.5,1801.4,0.11931975]
[1745685390578,6.01,1801.6,1801.5,5.55092978]
[1745685390781,6.01,1801.6,1801.4,6.48285767]
[1745685390782,4.699,1801.5,1801.4,6.48285767]
[1745685390983,4.699,1801.5,1801.4,6.36353792]
[1745685397057,4.699,1801.5,1801.4,6.49271171]
[1745685405028,16.665,1801.7,1801.4,6.49271171]
[1745685405225,4.696,1801.9,1801.8,5.54994081]
[1745685405588,4.696,1801.9,1801.8,5.67774049]
[1745685405886,4.696,1801.9,1801.8,6.49194049]
[1745685407290,4.696,1801.9,1801.8,6.49200523]
[1745685408122,4.696,1801.9,1801.8,5.67780523]
[1745685418458,4.696,1801.9,1801.8,0.12779968]
[1745685418656,10.74641987,1801.9,1801.8,0.12779968]
[1745685418816,11.57011987,1801.9,1801.8,0.12779968]
[1745685419146,5.55004012,1801.8,1801.4,5.55111636]
[1745685419311,6.01,1801.8,1801.4,5.55111636]
[1745685419512,1.13492329,1801.7,1801.5,0.12445466]
[1745685419714,2.40441655,1801.7,1801.5,0.12445466]
[1745685420647,0.31122329,1801.7,1801.6,5.55062166]
[1745685421214,6.01,1801.8,1801.6,5.67507632]
[1745685421539,6.01,1801.8,1801.6,11.22549474]
[1745685421732,6.01,1801.8,1801.6,5.67487308]
[1745685422247,6.01,1801.8,1801.7,5.55031359]
[1745685422616,6.01,1801.8,1801.7,5.6762018]
[1745685422817,6.32126589,1801.8,1801.7,0.12588821]
[1745685423117,7.50536248,1801.8,1801.7,5.55031359]
[1745685423342,6.32126589,1801.8,1801.7,5.6762018]
[1745685423749,6.01,1801.8,1801.7,5.6762018]
[1745685427163,6.01,1801.8,1801.7,0.12588821]
[1745685427657,6.32133736,1801.8,1801.6,5.55043]
[1745685427865,6.32133736,1801.8,1801.7,0.126366]
[1745685428061,7.4230711,1801.8,1801.7,0.126366]
[1745685428363,7.4230711,1801.8,1801.7,5.67667959]
[1745685428564,7.4230711,1801.8,1801.7,5.55031359]
[1745685428741,7.4230711,1801.8,1801.7,5.67685879]
[1745685429268,7.4230711,1801.8,1801.7,0.1265452]
[1745685429634,7.4230711,1801.8,1801.6,5.55043]
[1745685429837,7.4230711,1801.8,1801.7,0.1265452]
[1745685430260,7.4230711,1801.8,1801.6,5.55043]
[1745685430563,7.11173374,1801.8,1801.7,0.1265452]
[1745685430751,7.11173374,1801.8,1801.6,5.55043]
[1745685430954,7.11173374,1801.8,1801.7,0.1265452]
[1745685431155,7.11173374,1801.8,1801.6,5.55043]
[1745685431460,7.11173374,1801.8,1801.7,0.1265452]
[1745685431835,7.11173374,1801.8,1801.6,5.55043]
[1745685432032,6.8175,1801.8,1801.7,0.1265452]
[1745685432371,6.8175,1801.8,1801.5,11.10154386]
[1745685432660,6.8175,1801.8,1801.6,5.55061788]
[1745685432841,6.8175,1801.8,1801.6,5.67704361]
[1745685433043,7.96885,1801.8,1801.6,5.67704361]
[1745685433733,0.31136055,1801.7,1801.6,5.67704361]
[1745685434766,7.16135,1801.8,1801.6,5.67704361]
[1745685435663,4.673,1801.7,1801.6,5.67704361]
[1745685436344,4.673,1801.7,1801.6,0.12642573]
[1745685437457,4.98430492,1801.7,1801.6,0.12642573]
[1745685439096,4.98430492,1801.7,1801.6,5.67704739]
[1745685442880,4.98430492,1801.7,1801.6,6.43294739]
[1745685443763,4.673,1801.7,1801.6,6.43294739]
[1745685445247,4.98447476,1801.7,1801.6,6.43294739]
[1745685445945,0.31147476,1801.7,1801.6,6.43294739]
[1745685446149,4.98447476,1801.7,1801.6,7.63132811]
[1745685446467,16.667,1802.0,1801.9,6.30559754]
[1745685446779,21.34,1802.0,1801.9,6.43184411]
[1745685448480,16.667,1802.0,1801.9,6.43184411]
[1745685448682,21.34,1802.0,1801.9,6.43184411]
[1745685449685,23.30350281,1802.0,1801.9,5.67594411]
[1745685449854,21.34,1802.0,1801.9,0.12624657]
[1745685450189,21.34,1802.0,1801.8,11.09957206]
[1745685450350,21.34,1802.0,1801.9,0.12266317]
[1745685450871,21.34,1802.0,1801.9,5.67236071]
[1745685451070,21.34,1802.0,1801.8,5.54983546]
[1745685451382,21.34,1802.0,1801.9,0.12266317]
[1745685451787,21.34,1802.0,1801.9,5.54969754]
[1745685451976,21.34,1802.0,1801.9,5.67259956]
[1745685454491,4.673,1802.0,1801.9,5.67259956]
[1745685454690,4.673,1802.0,1801.9,7.55073893]
[1745685455282,4.673,1802.0,1801.9,6.42849956]
[1745685462619,6.01,1802.4,1802.2,5.54864099]
[1745685462813,4.651,1802.3,1802.1,6.33990306]
[1745685464213,4.651,1802.3,1802.1,0.791]
[1745685464677,4.64328898,1802.3,1802.1,6.34002022]
[1745685464877,4.64328898,1802.3,1802.1,0.791]
[1745685465603,4.64328898,1802.3,1802.1,6.34007077]
[1745685465907,4.64328898,1802.3,1802.1,0.791]
[1745685466219,4.64328898,1802.3,1802.0,6.30031847]
[1745685467814,4.64328898,1802.3,1802.0,11.84949904]
[1745685468912,4.64328898,1802.3,1802.0,11.84942991]
[1745685469204,4.64328898,1802.3,1802.0,6.30024934]
[1745685469399,4.64328898,1802.3,1802.0,11.84939281]
[1745685469598,4.64328898,1802.3,1802.0,6.30024347]
[1745685469907,4.64328898,1802.3,1802.0,11.84940655]
[1745685470106,4.64328898,1802.3,1802.0,11.84939321]
[1745685470311,4.64328898,1802.3,1802.0,6.30024347]
[1745685472182,4.64328898,1802.3,1802.1,0.12182727]
[1745685477219,10.50324753,1802.3,1802.1,0.12182727]
[1745685477600,10.50324753,1802.3,1801.9,6.84390263]
[1745685477801,10.50324753,1802.3,1802.2,0.12158852]
[1745685478001,11.55357228,1802.3,1801.9,5.54949724]
[1745685478331,10.98937307,1802.3,1802.2,0.12158852]
[1745685478525,10.98937307,1802.3,1801.9,5.54966131]
[1745685478827,0.31146688,1802.2,1802.0,0.12009585]
[1745685480328,10.98937307,1802.3,1802.0,0.12009585]
[1745685480496,5.54908162,1802.1,1802.0,0.12009585]
[1745685480690,1.8835156,1802.1,1802.0,0.12009585]
[1745685480916,0.7737,1802.0,1801.3,2.34324776]
[1745685481105,6.32424536,1801.7,1801.3,0.7599]
[1745685481298,6.32424536,1801.7,1801.3,6.31123015]
[1745685481527,0.7737,1801.7,1801.3,6.31123015]
[1745685481724,0.7737,1801.7,1801.3,7.62695958]
[1745685482539,0.7737,1801.7,1801.3,7.62694737]
[1745685482831,1.08488176,1801.7,1801.3,7.62694737]
[1745685483221,1.08488176,1801.7,1801.3,13.17827463]
[1745685483426,0.7737,1801.7,1801.3,7.62692973]
[1745685483830,0.7737,1801.7,1801.4,5.55120972]
[1745685485111,0.7737,1801.7,1801.3,7.62700892]
[1745685485316,0.7737,1801.7,1801.3,13.17832773]
[1745685485522,0.7737,1801.7,1801.3,13.17831645]
[1745685485723,0.7737,1801.7,1801.3,7.62694824]
[1745685486122,0.7737,1801.7,1801.3,7.62693313]
[1745685487034,6.32405126,1801.7,1801.3,7.62693313]
[1745685487334,6.32405126,1801.7,1801.4,0.12200655]
[1745685487842,0.7737,1801.7,1801.4,0.12200655]
[1745685488006,0.7737,1801.7,1801.4,5.67323321]
[1745685489839,0.7737,1801.7,1801.4,0.12200655]
[1745685490735,0.7737,1801.7,1801.4,5.67314379]
[1745685492656,0.7737,1801.7,1801.4,0.12200655]
[1745685492806,0.7737,1801.7,1801.1,0.05]
[1745685492807,0.7918,1801.5,1801.1,0.05]
[1745685493017,4.642,1801.4,1801.1,5.6019752]
[1745685494219,0.77072114,1801.3,1801.1,0.05]
[1745685494726,4.642,1801.4,1801.1,11.15386856]
[1745685495109,4.642,1801.4,1801.1,5.60191459]
[1745685496141,4.642,1801.4,1801.1,11.15387092]
[1745685496607,4.642,1801.4,1801.1,5.60191459]
[1745685496807,4.642,1801.4,1801.1,11.1538596]
[1745685497004,4.642,1801.4,1801.3,5.5515461]
[1745685497309,4.642,1801.4,1801.2,5.55169195]
[1745685498012,4.642,1801.4,1801.1,5.60200386]
[1745685498244,4.642,1801.4,1801.3,5.5515461]
[1745685498425,4.642,1801.4,1801.3,6.3543461]
[1745685498748,4.642,1801.4,1801.3,5.5515461]
[1745685498957,4.642,1801.4,1801.2,5.55172895]
[1745685501816,4.642,1801.4,1801.1,0.05]
[1745685502316,4.642,1801.4,1801.2,5.68072299]
[1745685504731,4.642,1801.4,1801.3,5.5515461]
[1745685505115,4.642,1801.4,1801.3,5.68167598]
[1745685505962,4.642,1801.4,1801.3,6.9771662]
[1745685506169,6.01,1801.5,1801.4,5.55123792]
[1745685506370,10.653,1801.5,1801.4,7.60802814]
[1745685506874,10.653,1801.5,1801.4,7.73756051]
[1745685509040,10.653,1801.5,1801.4,5.68077029]
[1745685511039,4.643,1801.5,1801.4,5.68077029]
[1745685511229,4.643,1801.5,1801.4,7.01206507]
[1745685513560,4.643,1801.5,1801.4,5.68077029]
[1745685513864,4.643,1801.5,1801.4,6.43127029]
[1745685522186,4.643,1801.5,1801.4,0.88003237]
[1745685522480,4.643,1801.5,1801.4,5.68077029]
[1745685523778,4.63684099,1801.5,1801.4,5.68077029]
[1745685529188,4.63684099,1801.5,1801.4,0.12953237]
[1745685529377,5.13164676,1801.5,1801.4,0.12953237]
[1745685529575,5.44286345,1801.5,1801.4,0.12953237]
[1745685530103,6.25206345,1801.5,1801.4,0.12953237]
[1745685530300,0.8092,1801.4,1801.1,0.05]
[1745685530505,6.36058355,1801.4,1801.1,0.05]
[1745685530651,1.95842303,1801.4,1801.1,0.05]
[1745685530850,1.95842303,1801.4,1801.1,5.60211177]
[1745685532388,1.95842303,1801.4,1801.2,0.12911414]
[1745685532684,1.95842303,1801.4,1801.2,5.6809289]
[1745685532872,1.12028103,1801.4,1801.2,5.6809289]
[1745685533074,1.12028103,1801.4,1801.2,0.12911414]
[1745685534288,0.8092,1801.4,1801.2,0.12911414]
[1745685534462,6.8192,1801.4,1801.2,0.12911414]
[1745685537698,6.8192,1801.4,1801.2,5.68091117]
[1745685538964,6.01,1801.4,1801.3,5.5515461]
[1745685539166,10.653,1801.4,1801.3,5.68107855]
[1745685539386,10.653,1801.4,1801.3,0.12953245]
[1745685540371,6.4871,1801.4,1801.3,0.12953245]
[1745685540577,6.4871,1801.4,1801.1,5.60204615]
[1745685540887,6.4871,1801.4,1801.2,0.1311457]
[1745685542078,6.4871,1801.4,1801.2,5.68298596]
[1745685542801,6.4871,1801.4,1801.2,0.1311457]
[1745685546365,6.4871,1801.4,1801.2,5.68299759]
[1745685546565,6.01,1801.5,1801.4,6.32993792]
[1745685546779,4.643,1801.5,1801.4,7.75674176]
[1745685547169,4.643,1801.5,1801.4,10.75674176]
[1745685548502,16.669,1801.6,1801.5,5.55092978]
[1745685548672,21.312,1801.6,1801.5,9.25623435]
[1745685548872,21.312,1801.6,1801.5,9.38708126]
[1745685549900,21.312,1801.6,1801.5,8.77102321]
[1745685552745,21.312,1801.6,1801.5,7.31254384]
[1745685552911,21.312,1801.6,1801.5,0.13084691]
[1745685553111,21.312,1801.6,1801.5,5.68177669]
[1745685553511,21.30253284,1801.6,1801.5,5.68177669]
[1745685555836,4.642,1802.0,1801.9,5.54953422]
[1745685556049,4.642,1802.0,1801.9,6.86340594]
[1745685557811,4.642,1802.0,1801.9,7.70109748]
[1745685558014,21.311,1802.3,1802.2,5.54877372]
[1745685558250,21.311,1802.3,1802.2,6.45489098]
[1745685558413,16.669,1802.3,1802.2,7.13467035]